[Event "Titled Tuesday Blitz January 10 Early 2023"]
[White "Dominguez Perez, Leinier"]
[Black "Gheorghiu, Calin"]
[WhiteFideId "3503240"]
[BlackFideId "1200305"]
[WhiteElo "2739"]
[BlackElo "2313"]
[Result "1-0"]
[Round "01"]
[TimeControl "180+2"]
[Date "2023.01.10"]
[WhiteClock "0:00:54"]
[BlackClock "0:00:02"]

1. e4 {[%clk 0:03:00]}  e6 {[%clk 0:02:56]} 2. d4 {[%clk 0:02:59]}  d5 {[%clk 0:02:55]} 3. Nc3 {[%clk 0:03:00]}  Nf6 {[%clk 0:02:53]} 4. e5 {[%clk 0:02:59]}  Nfd7 {[%clk 0:02:53]} 5. Nce2 {[%clk 0:03:00]}  c5 {[%clk 0:02:53]} 6. c3 {[%clk 0:03:00]}  b5 {[%clk 0:02:49]} 7. a3 {[%clk 0:02:56]}  a5 {[%clk 0:02:47]} 8. Nf4 {[%clk 0:02:46]}  Ba6 {[%clk 0:02:43]} 9. Nf3 {[%clk 0:02:28]}  b4 {[%clk 0:02:28]} 10. axb4 {[%clk 0:02:27]}  axb4 {[%clk 0:02:24]} 11. h4 {[%clk 0:01:48]}  Qb6 {[%clk 0:02:12]} 12. Be3 {[%clk 0:01:30]}  bxc3 {[%clk 0:01:56]} 13. bxc3 {[%clk 0:01:30]}  cxd4 {[%clk 0:01:55]} 14. Bxd4 {[%clk 0:01:17]}  Bc5 {[%clk 0:01:51]} 15. Bd3 {[%clk 0:01:17]}  Bxd4 {[%clk 0:01:19]} 16. cxd4 {[%clk 0:01:17]}  O-O {[%clk 0:00:52]} 17. O-O {[%clk 0:01:04]}  Bxd3 {[%clk 0:00:46]} 18. Qxd3 {[%clk 0:01:03]}  Rxa1 {[%clk 0:00:30]} 19. Rxa1 {[%clk 0:01:04]}  Nc6 {[%clk 0:00:30]} 20. Rb1 {[%clk 0:01:02]}  Qa5 {[%clk 0:00:25]} 21. Ng5 {[%clk 0:01:01]}  g6 {[%clk 0:00:22]} 22. h5 {[%clk 0:00:59]}  Nb4 {[%clk 0:00:16]} 23. Qh3 {[%clk 0:00:55]}  h6 {[%clk 0:00:02]} 24. hxg6 {[%clk 0:00:54]} 1-0


[Site "https://www.chess.com"]

[Event "Titled Tuesday Blitz January 10 Early 2023"]
[White "Molina, Roberto Junio Brito"]
[Black "Ansh M Shah"]
[WhiteFideId "2109450"]
[BlackFideId "25033379"]
[WhiteElo "2403"]
[BlackElo "2171"]
[Result "1-0"]
[Round "01"]
[TimeControl "180+2"]
[Date "2023.01.10"]
[WhiteClock "0:01:04"]
[BlackClock "0:00:05"]

1. d4 {[%clk 0:02:58]}  Nf6 {[%clk 0:02:59]} 2. c4 {[%clk 0:02:57]}  e6 {[%clk 0:02:59]} 3. Nf3 {[%clk 0:02:57]}  d5 {[%clk 0:02:59]} 4. Nc3 {[%clk 0:02:56]}  Be7 {[%clk 0:02:59]} 5. cxd5 {[%clk 0:02:54]}  exd5 {[%clk 0:02:59]} 6. Bg5 {[%clk 0:02:54]}  O-O {[%clk 0:02:59]} 7. e3 {[%clk 0:02:54]}  c6 {[%clk 0:02:59]} 8. Bd3 {[%clk 0:02:53]}  Bg4 {[%clk 0:02:59]} 9. Qc2 {[%clk 0:02:53]}  Nbd7 {[%clk 0:02:59]} 10. Ne5 {[%clk 0:02:51]}  Bh5 {[%clk 0:02:58]} 11. O-O {[%clk 0:02:49]}  Bg6 {[%clk 0:02:57]} 12. Nxg6 {[%clk 0:02:47]}  hxg6 {[%clk 0:02:58]} 13. Rab1 {[%clk 0:02:46]}  a5 {[%clk 0:02:53]} 14. a3 {[%clk 0:02:45]}  Re8 {[%clk 0:02:38]} 15. Rfe1 {[%clk 0:02:44]}  Ne4 {[%clk 0:02:31]} 16. Bf4 {[%clk 0:02:41]}  Nd6 {[%clk 0:02:12]} 17. h3 {[%clk 0:02:34]}  b5 {[%clk 0:01:52]} 18. e4 {[%clk 0:02:30]}  dxe4 {[%clk 0:01:43]} 19. Nxe4 {[%clk 0:02:30]}  Nf6 {[%clk 0:01:25]} 20. Bxd6 {[%clk 0:02:17]}  Bxd6 {[%clk 0:01:25]} 21. Qxc6 {[%clk 0:02:13]}  Nxe4 {[%clk 0:01:24]} 22. Rxe4 {[%clk 0:02:06]}  Rxe4 {[%clk 0:01:21]} 23. Bxe4 {[%clk 0:02:07]}  Rb8 {[%clk 0:01:15]} 24. Rd1 {[%clk 0:01:54]}  b4 {[%clk 0:00:38]} 25. a4 {[%clk 0:01:51]}  b3 {[%clk 0:00:38]} 26. Bd3 {[%clk 0:01:43]}  Rb4 {[%clk 0:00:37]} 27. Bb5 {[%clk 0:01:42]}  Qf6 {[%clk 0:00:20]} 28. Qe4 {[%clk 0:01:25]}  Kh7 {[%clk 0:00:11]} 29. Qe3 {[%clk 0:01:22]}  Bf4 {[%clk 0:00:10]} 30. Qc3 {[%clk 0:01:21]}  Bd6 {[%clk 0:00:09]} 31. g3 {[%clk 0:01:20]}  Qg5 {[%clk 0:00:07]} 32. Kg2 {[%clk 0:01:17]}  Qd5+ {[%clk 0:00:06]} 33. Qf3 {[%clk 0:01:16]}  Qg5 {[%clk 0:00:05]} 34. Qxf7 {[%clk 0:01:11]}  Qf6 {[%clk 0:00:04]} 35. Qxf6 {[%clk 0:01:09]}  gxf6 {[%clk 0:00:05]} 36. Kf3 {[%clk 0:01:10]}  Kg7 {[%clk 0:00:05]} 37. Ke3 {[%clk 0:01:08]}  Kf7 {[%clk 0:00:05]} 38. Kd3 {[%clk 0:01:07]}  Bc7 {[%clk 0:00:04]} 39. Kc3 {[%clk 0:01:07]}  Bb6 {[%clk 0:00:04]} 40. Rd2 {[%clk 0:01:08]}  Bc7 {[%clk 0:00:03]} 41. h4 {[%clk 0:01:07]}  Bd8 {[%clk 0:00:03]} 42. d5 {[%clk 0:01:06]}  f5 {[%clk 0:00:02]} 43. d6 {[%clk 0:01:01]}  Bf6+ {[%clk 0:00:03]} 44. Kd3 {[%clk 0:01:01]}  Rd4+ {[%clk 0:00:03]} 45. Ke2 {[%clk 0:01:02]}  Rxd2+ {[%clk 0:00:03]} 46. Kxd2 {[%clk 0:01:02]}  Bxb2 {[%clk 0:00:03]} 47. Bc4+ {[%clk 0:01:03]}  Ke8 {[%clk 0:00:03]} 48. Bxb3 {[%clk 0:01:03]}  Kd7 {[%clk 0:00:03]} 49. Bf7 {[%clk 0:01:03]}  g5 {[%clk 0:00:02]} 50. hxg5 {[%clk 0:01:02]}  Kxd6 {[%clk 0:00:02]} 51. f4 {[%clk 0:01:00]}  Bd4 {[%clk 0:00:02]} 52. Ke2 {[%clk 0:01:00]}  Ke7 {[%clk 0:00:01]} 53. Bc4 {[%clk 0:01:00]}  Kf8 {[%clk 0:00:02]} 54. Kf3 {[%clk 0:01:00]}  Kg7 {[%clk 0:00:02]} 55. Bd3 {[%clk 0:01:00]}  Kf8 {[%clk 0:00:02]} 56. Bxf5 {[%clk 0:01:00]}  Ke7 {[%clk 0:00:02]} 57. Bd3 {[%clk 0:01:01]}  Kd6 {[%clk 0:00:03]} 58. Bb5 {[%clk 0:01:02]}  Kc5 {[%clk 0:00:03]} 59. Ke4 {[%clk 0:01:02]}  Bc3 {[%clk 0:00:02]} 60. g4 {[%clk 0:01:03]}  Kd6 {[%clk 0:00:02]} 61. Kf5 {[%clk 0:01:03]}  Ke7 {[%clk 0:00:03]} 62. Kg6 {[%clk 0:01:02]}  Kf8 {[%clk 0:00:03]} 63. f5 {[%clk 0:01:03]}  Bd2 {[%clk 0:00:03]} 64. f6 {[%clk 0:01:04]}  Bc3 {[%clk 0:00:03]} 65. Kf5 {[%clk 0:01:04]}  Bd2 {[%clk 0:00:04]} 66. g6 {[%clk 0:01:04]}  Kg8 {[%clk 0:00:04]} 67. Bc4+ {[%clk 0:01:03]}  Kf8 {[%clk 0:00:05]} 68. g7+ {[%clk 0:01:04]} 1-0


[Site "https://www.chess.com"]

[Event "Titled Tuesday Blitz January 10 Early 2023"]
[White "Gaitan, Juan Manuel"]
[Black "Xu, Yi"]
[WhiteFideId "121657"]
[BlackFideId "8605564"]
[WhiteElo "2328"]
[BlackElo "2527"]
[Result "0-1"]
[Round "01"]
[TimeControl "180+2"]
[Date "2023.01.10"]
[WhiteClock "0:00:08"]
[BlackClock "0:00:59"]

1. d4 {[%clk 0:02:57]}  Nf6 {[%clk 0:03:00]} 2. c4 {[%clk 0:02:56]}  e6 {[%clk 0:03:00]} 3. Nf3 {[%clk 0:02:55]}  d5 {[%clk 0:03:00]} 4. g3 {[%clk 0:02:55]}  Be7 {[%clk 0:02:56]} 5. Bg2 {[%clk 0:02:55]}  O-O {[%clk 0:02:57]} 6. O-O {[%clk 0:02:55]}  dxc4 {[%clk 0:02:57]} 7. Qc2 {[%clk 0:02:54]}  a6 {[%clk 0:02:58]} 8. a4 {[%clk 0:02:54]}  Bd7 {[%clk 0:02:58]} 9. Ne5 {[%clk 0:02:53]}  Bc6 {[%clk 0:02:59]} 10. Nxc6 {[%clk 0:02:53]}  Nxc6 {[%clk 0:02:59]} 11. e3 {[%clk 0:02:47]}  Na5 {[%clk 0:02:55]} 12. Nd2 {[%clk 0:02:43]}  c5 {[%clk 0:02:49]} 13. Nxc4 {[%clk 0:02:38]}  cxd4 {[%clk 0:02:28]} 14. Nxa5 {[%clk 0:02:29]}  Qxa5 {[%clk 0:02:28]} 15. Bxb7 {[%clk 0:02:25]}  Rab8 {[%clk 0:02:27]} 16. Bg2 {[%clk 0:02:13]}  Rfc8 {[%clk 0:02:23]} 17. Qe2 {[%clk 0:02:07]}  Bc5 {[%clk 0:02:17]} 18. Rd1 {[%clk 0:02:01]}  e5 {[%clk 0:02:02]} 19. exd4 {[%clk 0:01:31]}  Bxd4 {[%clk 0:02:01]} 20. Ra3 {[%clk 0:01:30]}  h6 {[%clk 0:01:48]} 21. Bh3 {[%clk 0:00:52]}  Rc7 {[%clk 0:01:32]} 22. Rxd4 {[%clk 0:00:45]}  Rxc1+ {[%clk 0:01:22]} 23. Rd1 {[%clk 0:00:46]}  Rxb2 {[%clk 0:01:17]} 24. Qf1 {[%clk 0:00:07]}  Rxd1 {[%clk 0:00:59]} 25. Qxd1 {[%clk 0:00:08]}  Qb6 {[%clk 0:00:59]} 26. Re3 {[%clk 0:00:08]}  Rb1 {[%clk 0:00:59]} 0-1


[Site "https://www.chess.com"]

[Event "Titled Tuesday Blitz January 10 Early 2023"]
[White "Kadric, Denis"]
[Black "Shuvalov, Evgenij"]
[WhiteFideId "14403803"]
[BlackFideId "4187237"]
[WhiteElo "2601"]
[BlackElo "2038"]
[Result "1-0"]
[Round "01"]
[TimeControl "180+2"]
[Date "2023.01.10"]
[WhiteClock "0:00:55"]
[BlackClock "0:00:01"]

1. e4 {[%clk 0:02:56]}  e6 {[%clk 0:02:58]} 2. d3 {[%clk 0:02:53]}  d5 {[%clk 0:02:58]} 3. Nd2 {[%clk 0:02:54]}  c5 {[%clk 0:02:58]} 4. g3 {[%clk 0:02:54]}  Nc6 {[%clk 0:02:58]} 5. Bg2 {[%clk 0:02:55]}  Nf6 {[%clk 0:02:58]} 6. Nh3 {[%clk 0:02:55]}  g6 {[%clk 0:02:55]} 7. O-O {[%clk 0:02:54]}  Bg7 {[%clk 0:02:55]} 8. c3 {[%clk 0:02:55]}  O-O {[%clk 0:02:55]} 9. f4 {[%clk 0:02:55]}  b6 {[%clk 0:02:52]} 10. Nf2 {[%clk 0:02:54]}  Ba6 {[%clk 0:02:51]} 11. Re1 {[%clk 0:02:54]}  Qc7 {[%clk 0:02:38]} 12. Qf3 {[%clk 0:02:53]}  Rad8 {[%clk 0:02:33]} 13. g4 {[%clk 0:02:53]}  Rfe8 {[%clk 0:02:12]} 14. Nf1 {[%clk 0:02:52]}  Na5 {[%clk 0:01:49]} 15. Ng3 {[%clk 0:02:43]}  c4 {[%clk 0:01:43]} 16. e5 {[%clk 0:02:42]}  Nd7 {[%clk 0:01:38]} 17. d4 {[%clk 0:02:43]}  b5 {[%clk 0:01:38]} 18. f5 {[%clk 0:02:42]}  exf5 {[%clk 0:01:35]} 19. gxf5 {[%clk 0:02:43]}  f6 {[%clk 0:01:32]} 20. fxg6 {[%clk 0:02:11]}  fxe5 {[%clk 0:01:25]} 21. Nh5 {[%clk 0:01:49]}  Nb6 {[%clk 0:01:02]} 22. gxh7+ {[%clk 0:01:45]}  Kh8 {[%clk 0:01:01]} 23. Bg5 {[%clk 0:01:42]}  Rd6 {[%clk 0:00:39]} 24. dxe5 {[%clk 0:01:31]}  Rxe5 {[%clk 0:00:26]} 25. Rxe5 {[%clk 0:01:22]}  Bxe5 {[%clk 0:00:27]} 26. Qf8+ {[%clk 0:01:11]}  Kxh7 {[%clk 0:00:27]} 27. Ng4 {[%clk 0:01:11]}  Bg7 {[%clk 0:00:04]} 28. Qf5+ {[%clk 0:01:06]}  Kg8 {[%clk 0:00:04]} 29. Bf4 {[%clk 0:01:04]}  Bc8 {[%clk 0:00:02]} 30. Nhf6+ {[%clk 0:00:55]}  Rxf6 {[%clk 0:00:01]} 31. Nxf6+ {[%clk 0:00:55]} 1-0


[Site "https://www.chess.com"]

[Event "Titled Tuesday Blitz January 10 Early 2023"]
[White "Ivic, Velimir"]
[Black "Vagman, Roy"]
[WhiteFideId "950122"]
[BlackFideId "2828995"]
[WhiteElo "2595"]
[BlackElo "2273"]
[Result "1-0"]
[Round "01"]
[TimeControl "180+2"]
[Date "2023.01.10"]
[WhiteClock "0:00:16"]
[BlackClock "0:00:01"]

1. e4 {[%clk 0:02:59]}  c5 {[%clk 0:02:57]} 2. Nf3 {[%clk 0:02:58]}  g6 {[%clk 0:02:54]} 3. c3 {[%clk 0:02:56]}  d5 {[%clk 0:02:53]} 4. e5 {[%clk 0:02:55]}  d4 {[%clk 0:02:49]} 5. Bc4 {[%clk 0:02:50]}  Bg7 {[%clk 0:02:45]} 6. O-O {[%clk 0:02:48]}  Nh6 {[%clk 0:02:44]} 7. d3 {[%clk 0:02:40]}  Nc6 {[%clk 0:02:34]} 8. Re1 {[%clk 0:02:35]}  O-O {[%clk 0:02:22]} 9. h3 {[%clk 0:02:17]}  Na5 {[%clk 0:01:58]} 10. Bb5 {[%clk 0:02:16]}  a6 {[%clk 0:01:57]} 11. Ba4 {[%clk 0:02:16]}  b5 {[%clk 0:01:57]} 12. Bc2 {[%clk 0:02:17]}  Bb7 {[%clk 0:01:56]} 13. Bf4 {[%clk 0:02:10]}  Qd5 {[%clk 0:01:31]} 14. Nbd2 {[%clk 0:02:06]}  Rae8 {[%clk 0:01:12]} 15. Qe2 {[%clk 0:01:52]}  Kh8 {[%clk 0:00:58]} 16. Ne4 {[%clk 0:01:44]}  Ng8 {[%clk 0:00:51]} 17. b4 {[%clk 0:01:36]}  cxb4 {[%clk 0:00:45]} 18. cxb4 {[%clk 0:01:36]}  Nc6 {[%clk 0:00:44]} 19. Bb3 {[%clk 0:01:37]}  Qd8 {[%clk 0:00:40]} 20. a3 {[%clk 0:01:25]}  f6 {[%clk 0:00:37]} 21. Nc5 {[%clk 0:01:23]}  Bc8 {[%clk 0:00:31]} 22. e6 {[%clk 0:01:17]}  g5 {[%clk 0:00:31]} 23. Bg3 {[%clk 0:01:16]}  Nh6 {[%clk 0:00:29]} 24. Qe4 {[%clk 0:01:04]}  Qb6 {[%clk 0:00:26]} 25. Rac1 {[%clk 0:00:57]}  f5 {[%clk 0:00:19]} 26. Qd5 {[%clk 0:00:57]}  f4 {[%clk 0:00:19]} 27. Bh2 {[%clk 0:00:58]}  Rf5 {[%clk 0:00:19]} 28. Nd7 {[%clk 0:00:56]}  Rxd5 {[%clk 0:00:07]} 29. Nxb6 {[%clk 0:00:53]}  Rd6 {[%clk 0:00:06]} 30. Nxg5 {[%clk 0:00:52]}  Bb7 {[%clk 0:00:06]} 31. Bxf4 {[%clk 0:00:52]}  Rdd8 {[%clk 0:00:04]} 32. Bd5 {[%clk 0:00:44]}  Rf8 {[%clk 0:00:04]} 33. Bc7 {[%clk 0:00:43]}  Rxd5 {[%clk 0:00:02]} 34. Nxd5 {[%clk 0:00:44]}  Rf5 {[%clk 0:00:02]} 35. Nxe7 {[%clk 0:00:16]}  Rxg5 {[%clk 0:00:02]} 36. Nxc6 {[%clk 0:00:16]}  Nf5 {[%clk 0:00:01]} 37. e7 {[%clk 0:00:16]}  Nxe7 {[%clk 0:00:01]} 38. Rxe7 {[%clk 0:00:17]}  Bf6 {[%clk 0:00:01]} 39. Re8+ {[%clk 0:00:16]}  Kg7 {[%clk 0:00:02]} 40. Bd8 {[%clk 0:00:16]}  Bxd8 {[%clk 0:00:01]} 41. Rxd8 {[%clk 0:00:16]}  Rg6 {[%clk 0:00:01]} 42. Rd7+ {[%clk 0:00:16]} 1-0


[Site "https://www.chess.com"]

[Event "Titled Tuesday Blitz January 10 Early 2023"]
[White "Pein, Jonathan"]
[Black "Moroni, Luca Jr"]
[WhiteFideId "417092"]
[BlackFideId "865834"]
[WhiteElo "2265"]
[BlackElo "2535"]
[Result "0-1"]
[Round "01"]
[TimeControl "180+2"]
[Date "2023.01.10"]
[WhiteClock "0:00:01"]
[BlackClock "0:00:08"]

1. e4 {[%clk 0:02:59]}  g6 {[%clk 0:02:58]} 2. c4 {[%clk 0:02:55]}  Bg7 {[%clk 0:02:57]} 3. Nc3 {[%clk 0:02:55]}  d6 {[%clk 0:02:54]} 4. g3 {[%clk 0:02:50]}  c5 {[%clk 0:02:54]} 5. Bg2 {[%clk 0:02:51]}  Nc6 {[%clk 0:02:55]} 6. Nge2 {[%clk 0:02:51]}  e6 {[%clk 0:02:52]} 7. O-O {[%clk 0:02:51]}  Nge7 {[%clk 0:02:53]} 8. d3 {[%clk 0:02:50]}  O-O {[%clk 0:02:52]} 9. Be3 {[%clk 0:02:50]}  a6 {[%clk 0:02:50]} 10. Qd2 {[%clk 0:02:48]}  Rb8 {[%clk 0:02:50]} 11. Bh6 {[%clk 0:02:46]}  b5 {[%clk 0:02:44]} 12. Bxg7 {[%clk 0:02:44]}  Kxg7 {[%clk 0:02:45]} 13. b3 {[%clk 0:02:44]}  b4 {[%clk 0:02:39]} 14. Na4 {[%clk 0:02:40]}  e5 {[%clk 0:02:37]} 15. f4 {[%clk 0:02:28]}  f5 {[%clk 0:02:33]} 16. fxe5 {[%clk 0:02:02]}  Nxe5 {[%clk 0:02:20]} 17. d4 {[%clk 0:02:02]}  cxd4 {[%clk 0:02:18]} 18. Nxd4 {[%clk 0:01:39]}  Qc7 {[%clk 0:02:16]} 19. Rad1 {[%clk 0:01:25]}  Bd7 {[%clk 0:02:11]} 20. exf5 {[%clk 0:01:21]}  gxf5 {[%clk 0:01:57]} 21. Ne2 {[%clk 0:01:09]}  Bxa4 {[%clk 0:01:50]} 22. bxa4 {[%clk 0:01:04]}  Qc5+ {[%clk 0:01:41]} 23. Kh1 {[%clk 0:01:03]}  Nxc4 {[%clk 0:01:41]} 24. Qg5+ {[%clk 0:00:59]}  Ng6 {[%clk 0:01:40]} 25. Nf4 {[%clk 0:00:59]}  Rbe8 {[%clk 0:01:34]} 26. h4 {[%clk 0:00:40]}  Ne5 {[%clk 0:01:08]} 27. h5 {[%clk 0:00:16]}  Nf7 {[%clk 0:01:08]} 28. h6+ {[%clk 0:00:16]}  Kg8 {[%clk 0:01:03]} 29. Qh5 {[%clk 0:00:05]}  Nfe5 {[%clk 0:00:30]} 30. Bd5+ {[%clk 0:00:04]}  Kh8 {[%clk 0:00:30]} 31. Qg5 {[%clk 0:00:03]}  Qa7 {[%clk 0:00:19]} 32. Ne6 {[%clk 0:00:02]}  Rf7 {[%clk 0:00:13]} 33. Rxf5 {[%clk 0:00:02]}  Qe7 {[%clk 0:00:12]} 34. Rxf7 {[%clk 0:00:01]}  Qxf7 {[%clk 0:00:12]} 35. Kg2 {[%clk 0:00:02]}  Qe7 {[%clk 0:00:10]} 36. Qxe7 {[%clk 0:00:01]}  Nxe7 {[%clk 0:00:11]} 37. Rc1 {[%clk 0:00:02]}  Nxd5 {[%clk 0:00:10]} 38. Ng5 {[%clk 0:00:01]}  Nc3 {[%clk 0:00:08]} 39. Nf7+ {[%clk 0:00:01]}  Nxf7 {[%clk 0:00:08]} 0-1


[Site "https://www.chess.com"]

[Event "Titled Tuesday Blitz January 10 Early 2023"]
[White "Babazada, Khazar"]
[Black "Kuzmin, Roman"]
[WhiteFideId "13413554"]
[BlackFideId "44134932"]
[WhiteElo "2474"]
[BlackElo "2198"]
[Result "0-1"]
[Round "01"]
[TimeControl "180+2"]
[Date "2023.01.10"]
[WhiteClock "0:00:17"]
[BlackClock "0:00:11"]

1. Nf3 {[%clk 0:03:00]}  Nf6 {[%clk 0:02:59]} 2. c4 {[%clk 0:02:59]}  e6 {[%clk 0:02:59]} 3. Nc3 {[%clk 0:02:59]}  d5 {[%clk 0:03:00]} 4. d4 {[%clk 0:02:59]}  Nbd7 {[%clk 0:02:59]} 5. Bg5 {[%clk 0:02:55]}  c6 {[%clk 0:02:59]} 6. e3 {[%clk 0:02:55]}  Be7 {[%clk 0:02:59]} 7. Bd3 {[%clk 0:02:47]}  h6 {[%clk 0:02:58]} 8. Bh4 {[%clk 0:02:47]}  dxc4 {[%clk 0:02:57]} 9. Bxc4 {[%clk 0:02:47]}  b5 {[%clk 0:02:57]} 10. Bd3 {[%clk 0:02:47]}  a6 {[%clk 0:02:58]} 11. Rc1 {[%clk 0:02:46]}  c5 {[%clk 0:02:57]} 12. Qe2 {[%clk 0:02:42]}  O-O {[%clk 0:02:52]} 13. O-O {[%clk 0:02:41]}  Bb7 {[%clk 0:02:50]} 14. Rfd1 {[%clk 0:02:41]}  Qb6 {[%clk 0:02:46]} 15. Bb1 {[%clk 0:02:34]}  Rac8 {[%clk 0:02:40]} 16. Ne5 {[%clk 0:02:34]}  Rfd8 {[%clk 0:02:02]} 17. Qc2 {[%clk 0:02:32]}  Nf8 {[%clk 0:01:59]} 18. Bxf6 {[%clk 0:02:24]}  Bxf6 {[%clk 0:01:58]} 19. Ne4 {[%clk 0:02:22]}  cxd4 {[%clk 0:01:51]} 20. Nxf6+ {[%clk 0:01:39]}  gxf6 {[%clk 0:01:51]} 21. Qe2 {[%clk 0:01:40]}  fxe5 {[%clk 0:01:39]} 22. Qg4+ {[%clk 0:01:40]}  Kh8 {[%clk 0:01:39]} 23. Qh5 {[%clk 0:01:39]}  e4 {[%clk 0:01:34]} 24. Qxh6+ {[%clk 0:01:36]}  Kg8 {[%clk 0:01:32]} 25. exd4 {[%clk 0:01:35]}  Rxc1 {[%clk 0:01:28]} 26. Qxc1 {[%clk 0:01:30]}  Rxd4 {[%clk 0:01:22]} 27. Re1 {[%clk 0:01:30]}  Ng6 {[%clk 0:01:15]} 28. Qh6 {[%clk 0:01:26]}  Qd6 {[%clk 0:01:11]} 29. Qc1 {[%clk 0:01:09]}  Qf4 {[%clk 0:01:11]} 30. Re3 {[%clk 0:01:03]}  Rc4 {[%clk 0:01:04]} 31. Qd1 {[%clk 0:01:00]}  Qc7 {[%clk 0:01:03]} 32. Re1 {[%clk 0:00:57]}  a5 {[%clk 0:01:01]} 33. g3 {[%clk 0:00:55]}  e3 {[%clk 0:00:59]} 34. fxe3 {[%clk 0:00:52]}  Ne5 {[%clk 0:00:52]} 35. Rf1 {[%clk 0:00:48]}  Nf3+ {[%clk 0:00:50]} 36. Kf2 {[%clk 0:00:46]}  Qe5 {[%clk 0:00:36]} 37. b3 {[%clk 0:00:42]}  Rc8 {[%clk 0:00:28]} 38. Qd3 {[%clk 0:00:22]}  Qb2+ {[%clk 0:00:24]} 39. Qe2 {[%clk 0:00:22]}  Qxe2+ {[%clk 0:00:22]} 40. Kxe2 {[%clk 0:00:23]}  Ne5 {[%clk 0:00:22]} 41. Rf4 {[%clk 0:00:21]}  b4 {[%clk 0:00:20]} 42. Be4 {[%clk 0:00:18]}  Bxe4 {[%clk 0:00:19]} 43. Rxe4 {[%clk 0:00:19]}  f6 {[%clk 0:00:18]} 44. Kd1 {[%clk 0:00:16]}  Kf7 {[%clk 0:00:17]} 45. h4 {[%clk 0:00:15]}  Rg8 {[%clk 0:00:16]} 46. Rd4 {[%clk 0:00:15]}  Rxg3 {[%clk 0:00:16]} 47. Rd6 {[%clk 0:00:15]}  Rh3 {[%clk 0:00:16]} 48. Ra6 {[%clk 0:00:16]}  Rxh4 {[%clk 0:00:16]} 49. Rxa5 {[%clk 0:00:17]}  Rh1+ {[%clk 0:00:16]} 50. Ke2 {[%clk 0:00:17]}  Rh2+ {[%clk 0:00:14]} 51. Kf1 {[%clk 0:00:17]}  Kg6 {[%clk 0:00:13]} 52. Ra4 {[%clk 0:00:17]}  Nd3 {[%clk 0:00:11]} 0-1


[Site "https://www.chess.com"]

[Event "Titled Tuesday Blitz January 10 Early 2023"]
[White "Arencibia Monduy, Antonio"]
[Black "Zhigalko, Sergei"]
[WhiteFideId "3507939"]
[BlackFideId "13502956"]
[WhiteElo "2122"]
[BlackElo "2572"]
[Result "0-1"]
[Round "01"]
[TimeControl "180+2"]
[Date "2023.01.10"]
[WhiteClock "0:00:01"]
[BlackClock "0:00:17"]

1. e4 {[%clk 0:02:58]}  c5 {[%clk 0:02:59]} 2. Nf3 {[%clk 0:02:58]}  Nc6 {[%clk 0:02:59]} 3. c3 {[%clk 0:02:58]}  Nf6 {[%clk 0:02:59]} 4. e5 {[%clk 0:02:57]}  Nd5 {[%clk 0:02:59]} 5. d4 {[%clk 0:02:58]}  cxd4 {[%clk 0:02:59]} 6. cxd4 {[%clk 0:02:59]}  d6 {[%clk 0:02:59]} 7. exd6 {[%clk 0:02:59]}  Qxd6 {[%clk 0:02:59]} 8. Be2 {[%clk 0:02:53]}  Bf5 {[%clk 0:02:59]} 9. a3 {[%clk 0:02:49]}  e6 {[%clk 0:02:59]} 10. O-O {[%clk 0:02:48]}  Be7 {[%clk 0:02:59]} 11. Nc3 {[%clk 0:02:47]}  O-O {[%clk 0:02:59]} 12. Re1 {[%clk 0:02:46]}  Rfd8 {[%clk 0:02:58]} 13. Nxd5 {[%clk 0:02:43]}  Qxd5 {[%clk 0:02:59]} 14. Be3 {[%clk 0:02:43]}  Rac8 {[%clk 0:02:58]} 15. Rc1 {[%clk 0:02:43]}  h6 {[%clk 0:02:51]} 16. h3 {[%clk 0:02:42]}  a6 {[%clk 0:02:48]} 17. Bd3 {[%clk 0:02:36]}  Bxd3 {[%clk 0:02:18]} 18. Qxd3 {[%clk 0:02:37]}  Bf6 {[%clk 0:02:18]} 19. Qc4 {[%clk 0:01:43]}  Qxc4 {[%clk 0:01:36]} 20. Rxc4 {[%clk 0:01:42]}  Na5 {[%clk 0:01:35]} 21. Rxc8 {[%clk 0:01:32]}  Rxc8 {[%clk 0:01:36]} 22. Re2 {[%clk 0:01:32]}  Nb3 {[%clk 0:01:32]} 23. g3 {[%clk 0:01:23]}  a5 {[%clk 0:01:27]} 24. Kg2 {[%clk 0:01:23]}  a4 {[%clk 0:01:28]} 25. Ne5 {[%clk 0:01:19]}  b5 {[%clk 0:01:25]} 26. f4 {[%clk 0:01:19]}  Rd8 {[%clk 0:01:03]} 27. Kf3 {[%clk 0:00:27]}  Rxd4 {[%clk 0:00:53]} 28. Rc2 {[%clk 0:00:13]}  Bxe5 {[%clk 0:00:45]} 29. fxe5 {[%clk 0:00:10]}  Rd5 {[%clk 0:00:31]} 30. Ke4 {[%clk 0:00:10]}  h5 {[%clk 0:00:29]} 31. h4 {[%clk 0:00:09]}  Kh7 {[%clk 0:00:29]} 32. Rc7 {[%clk 0:00:09]}  Kg6 {[%clk 0:00:29]} 33. Rb7 {[%clk 0:00:10]}  Na5 {[%clk 0:00:28]} 34. Rc7 {[%clk 0:00:04]}  Nc4 {[%clk 0:00:28]} 35. Bc1 {[%clk 0:00:02]}  Nxe5 {[%clk 0:00:23]} 36. Rb7 {[%clk 0:00:01]}  Nd3 {[%clk 0:00:22]} 37. Be3 {[%clk 0:00:01]}  Nxb2 {[%clk 0:00:22]} 38. Bd4 {[%clk 0:00:01]}  Nc4 {[%clk 0:00:20]} 39. Rb8 {[%clk 0:00:01]}  f5+ {[%clk 0:00:17]} 0-1


[Site "https://www.chess.com"]